{"text_format":"1","workbook":"xlsx","n_sheets":5,"sheets":["Rechner","Hinweise zu Tarifen","Hinweise zur Beitragsermittlung","Hilfe","Tarifliste"],"not_rendered":{"charts":0,"images":2,"macros":1,"external_links":0,"defined_names":7,"comments":0,"pivot_tables":0},"unopened":[],"bounds":{"document_bytes":16777216,"sheet_cells":100000,"rows_first":2000,"rows_last":500,"rows_between":2000,"halvings":0,"cell_chars":16384,"cell_head_chars":4096},"cells_cut":0,"cells_raw":0,"read":"whole","date_system":"1900"}

{"sheet":"Rechner","index":0,"n_rows":61,"n_cols":10,"rows_kept":61,"cut":false,"hidden":false,"merged":[[32,3,32,4],[38,1,38,6],[33,1,33,4],[27,3,27,4],[28,3,28,4],[29,3,29,4],[30,3,30,4],[31,3,31,4],[3,6,13,6],[26,1,26,4],[2,1,2,3],[3,1,3,3],[1,1,1,3],[4,1,4,4],[14,1,14,2],[12,1,12,2],[15,1,15,2],[22,1,22,2],[25,1,25,4],[13,1,13,4]]}
[]
[null,"Berechnung für:",null,null,"Max Muster",null,null,"Zähler für PDF-Namen:"]
[null,"Eintrittsalter in eine große AWV:",null,null,25,null,null,1]
[null,"… mit dem Aktivierungsalter:",null,null,60,null,{"$f":"IF(B7=\"AB\",\"Wählen Sie zum Tarif AB bitte zusätzlich den Tarif SB-R.\",IF(B7=\"BA25\",\"Der Tarif BA25 kann nur in eine gr. AWV der Tarife AB und SB-R umgestellt werden. Bitte wählen Sie zusätzlich diese Tarife aus.\",\"\"))","v":""}]
[null,"Beitragsvergleich der beiden Anwartschaftsvarianten:"]
[null,"Tarif:","Stufe:","Beitrag kl. AWV:","Beitrag gr. AWV:",null,null,"Hier der Tarif in Klarschrift zur richtigen Auswahl auf Tabellenblatt TARIFLISTE"]
[null,"Bitte wählen","Stufe",null,null,null,null,{"$f":"IF(B7=\"AB\",\"AB\",IF(B7=\"BA25\",\"BA\",IF(B7=\"BO\",\"BO\",IF(B7=\"START-B\",\"START\",IF(B7=\"KOMFORT-B\",\"KOMFORT\",IF(B7=\"EXKLUSIV-B\",\"EXKLUSIV\",IF(B7=\"BK\",\"BK\",\"\")))))))","v":""}]
[null,"Bitte wählen","Stufe"]
[null,"Bitte wählen","Stufe",null,null,null,null,"Gesamtbeitrag kleine AWV bis zur Aktivierung:",18,60]
[null,"Bitte wählen","Stufe",null,null,null,null,{"$f":"(E4-E3)*D13","v":{"$error":"#VALUE!"}},19,61]
[null,"Bitte wählen","Stufe",null,null,null,null,"Gesamtbeitrag große AWV bis zur Aktivierung:",20,62]
[null,"Bitte wählen","Stufe",null,null,null,null,{"$f":"(E4-E3)*E13","v":{"$error":"#VALUE!"}},21,63]
[null,"Summe:",null,{"$f":"IF(SUM(D7:D12)=0,\"\",SUM(D7:D12))","v":""},{"$f":"IF(SUM(E7:E12)=0,\"\",SUM(E7:E12))","v":""},null,null,"Differenz zw Aktivierung und Normal:",22,64]
[null,"Vergleich der Aktivierungsbeiträge der zwei Anwartschaftsvarianten:",null,null,null,null,null,{"$f":"D23-E23","v":{"$error":"#VALUE!"}},23,65]
[null,null,null,"Normalbeitrag: ","Normalbeitrag:",null,null,"Alter:",24,66]
[null," (keine Auswahl erforderlich)",null,{"$f":"CONCATENATE(\"zum Aktivierungsalter \",E4,)","v":"zum Aktivierungsalter 60"},{"$f":"CONCATENATE(\"zum Umstellungsalter \",E3,)","v":"zum Umstellungsalter 25"},null,null,{"$f":"IFERROR(ROUND((H12-H10)/H14+E4,2),\"xxx\")","v":"xxx"},25,67]
[null,{"$f":"IF(AND(B7<>\"Bitte wählen\",B7<>\"\"),B7,\"\")","v":""},{"$f":"IF(AND(B7<>\"Bitte wählen\",B7<>\"\",C7<>\"Stufe\"),C7,\"\")","v":""},null,null,null,null,{"$f":"IFERROR((H12-H10)/H14+E4,\"xxx\")","v":"xxx"},26,68]
[null,{"$f":"IF(AND(B8<>\"Bitte wählen\",B8<>\"\"),B8,\"\")","v":""},{"$f":"IF(C8<>\"Stufe\",C8,\"\")","v":""},null,null,null,null,"Alter + 1",27,69]
[null,"","",null,null,null,null,{"$f":"IF(H16=\"xxx\",75,IF(OR(H16<74,H16>79),75,LEFT(H16,2)+1))","v":75},28,70]
[null,"","",null,null,null,null,null,29]
[null,"","",null,null,null,null,null,30]
[null,"","",null,null,null,null,null,31]
[null,"Summe:",null,{"$f":"IF(SUM(D17:D22)=0,\"\",SUM(D17:D22))","v":""},{"$f":"IF(SUM(E17:E22)=0,\"\",SUM(E17:E22))","v":""},null,null,null,32]
[null,null,null,null,null,null,null,null,33]
[null,"Ihr Vorteil durch die Umstellung in eine große AWV:",null,null,null,null,null,null,34]
[null,{"$f":"CONCATENATE(\"Die Gewinnschwelle wird im Alter von \",H16,\" Jahren erreicht.\")","v":"Die Gewinnschwelle wird im Alter von xxx Jahren erreicht."},null,null,null,null,null,null,35]
[null,"Persönlicher Beitragsvorteil bis zur Vollendung des…",null,null,null,null,null,"Beitragsvorteil:",36]
[null,{"$f":"CONCATENATE(\"   …  \",H19,\". Lebensjahres\")","v":"   …  75. Lebensjahres"},null,{"$f":"IF(H28<0,\"Gewinnschwelle nicht erreicht\",H28)","v":""},null,null,null,{"$f":"IFERROR((H19-$H$17)*12*$H$14,\"\")","v":""},37]
[null,"   …  80. Lebensjahres",null,"",null,null,null,{"$f":"IFERROR((80-$H$17)*12*$H$14,\"\")","v":""},38]
[null,"   …  85. Lebensjahres",null,"",null,null,null,{"$f":"IFERROR((85-$H$17)*12*$H$14,\"\")","v":""},39]
[null,"   …  90. Lebensjahres",null,"",null,null,null,{"$f":"IFERROR((90-$H$17)*12*$H$14,\"\")","v":""},40]
[null,"   …  95. Lebensjahres",null,"",null,null,null,{"$f":"IFERROR((95-$H$17)*12*$H$14,\"\")","v":""},41]
[null,"   …100. Lebensjahres",null,"",null,null,null,{"$f":"IFERROR((100-$H$17)*12*$H$14,\"\")","v":""},42]
[null,"\nZusätzlicher Vorteil einer großen Anwartschaft:\nSobald Alterungsrückstellungen gebildet werden, erhalten die Versicherten zusätzlich jährlich eine Direktgutschrift (90% der durchschnittlichen, über die rechnungsmäßige Verzinsung hinausgehenden Kapitalerträge – Überzins). Während der Laufzeit der großen Anwartschaft entstehen somit zusätzliche Mittel, die ab dem 65. Lebensjahr zur Reduzierung von Beitragsanpassungen eingesetzt werden. Ab dem 80. Lebensjahr stehen diese Mittel – wenn möglich – sogar zur Beitragssenkung zur Verfügung. Das aus dem Überzins entstehende zusätzliche Kapital lässt sich natürlich im Vorhinein nicht konkret beziffern. Fakt ist jedoch, dass sich hieraus zusätzliche Beitragsvorteile ab dem 65. Lebensjahr ergeben werden. Im Ergebnis führt dies zu nochmals höheren Beitragsvorteilen.\n\nAuch Beiträge von Anwartschaftsversicherungen von Heilfürsorgeberechtigten sind im Rahmen des Bürgerentlastungsgesetzes (BEG) abzugsfähig. Bis 100 EUR/ Jahr pauschal; darüber hinaus nur im Rahmen der BEG-fähigen Quote. Bitte haben Sie Verständnis dafür, dass wir keine steuerrechtlichen Beratungen durchführen dürfen. Bei Fragen zu Ihrer persönlichen Steuersituation wenden Sie sich deshalb bitte an Ihrem Steuerberater oder Ihr Finanzamt.",null,null,null,null,null,null,43]
[null,null,null,null,null,null,null,null,44]
[null,null,null,null,null,null,null,null,45]
[null,null,null,null,null,null,null,null,46]
[null,null,null,null,null,null,null,null,47]
[null,null,null,null,null,null,null,null,48]
[null,null,null,null,null,null,null,null,49]
[null,null,null,null,null,null,null,null,50]
[null,null,null,null,null,null,null,null,51]
[null,null,null,null,null,null,null,null,52]
[null,null,null,null,null,null,null,null,53]
[null,null,null,null,null,null,null,null,54]
[null,null,null,null,null,null,null,null,55]
[null,null,null,null,null,null,null,null,56]
[null,null,null,null,null,null,null,null,57]
[null,null,null,null,null,null,null,null,58]
[null,null,null,null,null,null,null,null,59]
[null,null,null,null,null,null,null,null,60]
[null,null,null,null,null,null,null,null,61]
[null,null,null,null,null,null,null,null,62]
[null,null,null,null,null,null,null,null,63]
[null,null,null,null,null,null,null,null,64]
[null,null,null,null,null,null,null,null,65]
[null,null,null,null,null,null,null,null,66]
[null,null,null,null,null,null,null,null,67]
[null,null,null,null,null,null,null,null,68]
[null,null,null,null,null,null,null,null,69]
[null,null,null,null,null,null,null,null,70]

{"sheet":"Hinweise zu Tarifen","index":1,"n_rows":1,"n_cols":1,"rows_kept":1,"cut":false,"hidden":false,"merged":[]}
["Bitte wählen Sie die versicherten Tarife des Kunden aus und geben Sie die Tarifstufen an."]

{"sheet":"Hinweise zur Beitragsermittlung","index":2,"n_rows":1,"n_cols":1,"rows_kept":1,"cut":false,"hidden":false,"merged":[]}
["Beiträge von Bestandstarifen finden \nSie in dieser Broschüre:\n\nDarüber hinaus können Sie sich auch an die bekannten Ansprechpartner im Vertriebsservice wenden."]

{"sheet":"Hilfe","index":3,"n_rows":2,"n_cols":1,"rows_kept":2,"cut":false,"hidden":false,"merged":[]}
["Bitte nutzen Sie immer die aktuelle Version des Anwartschafts-Vorteilsrechners aus dem Portal. Beim Abspeichern und mehrmaligen Verwenden des Tools können Funktionen beschädigt werden oder Sie greifen nicht auf den aktuellen Stand zu.\n\nDie fachliche Unterstützung zu allen relevanten KV-Fragen läuft wie gewohnt über Ihre Ansprechpartner bei SIGNAL IDUNA. "]
["Stand: 17.04.2019"]

{"sheet":"Tarifliste","index":4,"n_rows":21,"n_cols":12,"rows_kept":21,"cut":false,"hidden":true,"merged":[]}
["Bitte wählen","AB","BA25","BK","BO","EXKLUSIV-B","KOMFORT-B","START-B",null,null,null,"Stufe"]
[null,"AB","BA","BK","BO","EXKLUSIV","KOMFORT",null,null,null,null,100]
[null,"Bitte wählen","Bitte wählen","Bitte wählen","Bitte wählen","Bitte wählen","Bitte wählen",null,null,null,null,95]
[null,"SB-R","AB","BS","SB-W","EXKLUSIV-B-W","KOMFORT-B-W",null,null,null,null,90]
[null,"SB-W","SB-R","BE","SEB","EXKLUSIV-B-ES","KOMFORT-B-E(1)",null,null,null,null,85]
[null,"SEB","SB-W",null,"AEB(1)","EXKLUSIV-B-E(1)",null,null,null,null,null,80]
[null,"AEB(1)","SEB",null,null,null,null,null,null,null,null,75]
[null,null,"AEB(1)",null,null,null,null,null,null,null,null,70]
[null,null,null,null,null,null,null,null,null,null,null,65]
[null,null,null,null,null,null,null,null,null,null,null,60]
[null,null,null,null,null,null,null,null,null,null,null,55]
[null,null,null,null,null,null,null,null,null,null,null,50]
[null,null,null,null,null,null,null,null,null,null,null,45]
[null,null,null,null,null,null,null,null,null,null,null,40]
[null,null,null,null,null,null,null,null,null,null,null,35]
[null,null,null,null,null,null,null,null,null,null,null,30]
[null,null,null,null,null,null,null,null,null,null,null,25]
[null,null,null,null,null,null,null,null,null,null,null,20]
[null,null,null,null,null,null,null,null,null,null,null,15]
[null,null,null,null,null,null,null,null,null,null,null,10]
[null,null,null,null,null,null,null,null,null,null,null,5]